bitfinex/quotes_ETHUSD_20241105
["timestamp","ask_amount","ask_price","bid_price","bid_amount"]
[1730803328656,4.10149,2438.2,2438.0,0.7831]
[1730803329066,4.18328747,2438.3,2438.2,0.01]
[1730803329219,4.1009,2438.5,2438.2,0.01]
[1730803329575,4.10105,2438.4,2438.2,0.01]
[1730803330083,4.10095,2438.5,2438.4,0.01]
[1730803330230,0.7971,2438.9,2438.4,0.01]
[1730803330419,4.10055,2438.7,2438.5,0.01]
[1730803330619,4.10055,2438.7,2438.6,0.01]
[1730803331217,4.10037,2438.8,2438.6,0.01]
[1730803331421,8.20086,2438.8,2438.6,0.01]
[1730803331651,4.10037,2438.8,2438.6,0.01]
[1730803333661,8.2009,2438.8,2438.6,0.01]
[1730803334033,4.10037,2438.8,2438.6,0.01]
[1730803334934,4.10023,2438.9,2438.8,0.01]
[1730803337315,4.10023,2438.9,2438.8,0.26162421]
[1730803337518,4.18227747,2438.9,2438.8,0.26162421]
[1730803338358,4.10023,2438.9,2438.8,0.26162421]
[1730803338961,4.10023,2438.9,2438.8,0.01]
[1730803339194,4.10023,2438.9,2438.8,0.26163299]
[1730803340356,4.10023,2438.9,2438.8,0.01]
[1730803340667,4.10023,2438.9,2438.8,0.26163299]
[1730803343902,4.10023,2438.9,2438.8,0.01]
[1730803344201,4.10023,2438.9,2438.8,0.26152769]
[1730803345202,4.10023,2438.9,2438.8,0.01]
[1730803345766,4.10023,2438.9,2438.8,0.26152769]
[1730803348300,4.920271,2438.9,2438.8,0.01]
[1730803348591,5.00231847,2438.9,2438.8,0.01]
[1730803348711,4.18227747,2438.9,2438.8,0.01]
[1730803349048,4.18227747,2438.9,2438.8,0.26152769]
[1730803349527,4.10023,2438.9,2438.8,0.26152769]
[1730803352730,4.0999,2439.1,2439.0,0.01]
[1730803353275,4.0999,2439.1,2439.0,0.2615379]
[1730803355877,4.0999,2439.1,2439.0,0.2515379]
[1730803355878,8.13599869,2439.1,2439.0,0.2515379]
[1730803356081,8.13599869,2439.1,2438.9,0.02]
[1730803356259,4.10004,2439.0,2438.9,0.02]
[1730803358086,4.18208747,2439.0,2438.9,0.02]
[1730803358485,4.10004,2439.0,2438.9,0.02]
[1730803359750,4.0999,2439.1,2438.9,0.02]
[1730803359950,8.19989,2439.1,2438.9,0.02]
[1730803360845,4.09953,2439.3,2439.1,0.01]
[1730803361053,4.0997,2439.2,2439.1,0.01]
[1730803361584,4.18174747,2439.2,2439.1,0.01]
[1730803362081,4.0997,2439.2,2439.1,0.01]
[1730803362448,4.0997,2439.2,2439.1,0.25289859]
[1730803362756,4.0997,2439.2,2439.1,0.26289859]
[1730803364586,4.09936,2439.4,2439.3,0.01]
[1730803364810,4.18140747,2439.4,2439.3,0.01]
[1730803365219,4.18140747,2439.4,2439.3,0.25287371]
[1730803365378,4.18140747,2439.4,2439.3,0.01]
[1730803365581,4.18140747,2439.4,2439.3,0.25287371]
[1730803365780,4.18140747,2439.4,2439.3,0.01]
[1730803366001,4.18140747,2439.4,2439.3,0.25287371]
[1730803366201,4.18140747,2439.4,2439.3,0.01]
[1730803366719,4.0997,2439.2,2439.1,0.01]
[1730803366931,4.09987,2439.1,2439.0,0.01]
[1730803367076,4.18191747,2439.1,2439.0,0.01]
[1730803367677,4.18191747,2439.1,2438.9,0.01]
[1730803367678,4.10004,2439.0,2438.9,0.01]
[1730803368377,4.18208747,2439.0,2438.9,0.01]
[1730803369411,4.10004,2439.0,2438.9,0.01]
[1730803369975,4.18208747,2439.0,2438.9,0.01]
[1730803370412,4.10004,2439.0,2438.9,0.01]
[1730803370616,4.18208747,2439.0,2438.9,0.01]
[1730803371001,4.18208747,2439.0,2438.9,0.25277491]
[1730803371392,4.10004,2439.0,2438.9,0.25277491]
[1730803371617,4.10004,2439.0,2438.9,0.01]
[1730803371820,4.10004,2439.0,2438.9,0.60026331]
[1730803371980,4.09987,2439.1,2439.0,0.01]
[1730803372387,4.09987,2439.1,2439.0,0.25276246]
[1730803374390,4.18191747,2439.1,2439.0,0.25276246]
[1730803374810,4.18191747,2439.1,2439.0,0.01]
[1730803375025,4.18191747,2439.1,2439.0,0.25276246]
[1730803378906,4.18191747,2439.1,2439.0,0.01]
[1730803379329,4.18191747,2439.1,2439.0,0.25280616]
[1730803379537,5.22133514,2439.1,2439.0,0.24280616]
[1730803379964,4.10019,2439.0,2438.8,0.01]
[1730803380113,0.08204747,2438.9,2438.8,0.01]
[1730803380302,0.08204747,2438.9,2438.8,0.35756661]
[1730803380508,4.18224747,2438.9,2438.8,0.35756661]
[1730803381508,4.18224747,2438.9,2438.8,0.35755461]
[1730803382039,4.1002,2438.9,2438.8,0.35755461]
[1730803383054,6.29443672,2439.2,2438.8,0.35755461]
[1730803383252,8.1999,2439.1,2438.9,0.34755461]
[1730803383407,4.09987,2439.1,2439.0,0.01]
[1730803383610,4.18191747,2439.1,2439.0,0.01]
[1730803386157,4.18191747,2439.1,2439.0,0.60039212]
[1730803386363,4.09987,2439.1,2439.0,0.60041214]
[1730803388871,4.09987,2439.1,2439.0,0.60041292]
[1730803389082,4.09987,2439.1,2439.0,0.25284112]
[1730803389248,4.09987,2439.1,2439.0,0.60042161]
[1730803391990,4.09987,2439.1,2439.0,0.25284112]
[1730803392643,4.18191747,2439.1,2439.0,0.25284112]
[1730803393541,4.09987,2439.1,2439.0,0.25284112]
[1730803396657,4.18191747,2439.1,2439.0,0.25284112]
[1730803396851,4.98041747,2439.1,2439.0,0.25284112]
[1730803397159,6.02420314,2439.1,2439.0,0.01]
[1730803397358,6.02420314,2439.1,2439.0,0.25270999]
[1730803399253,4.98041747,2439.1,2439.0,0.60050918]
[1730803399460,4.18191747,2439.1,2439.0,0.60050918]
[1730803402806,4.09987,2439.1,2439.0,0.60050918]
[1730803403389,4.18191747,2439.1,2439.0,0.60050918]
[1730803405505,4.18191747,2439.1,2439.0,0.25270999]
[1730803405823,4.18191747,2439.1,2439.0,0.60059276]
[1730803406108,4.18191747,2439.1,2439.0,0.6005923]
[1730803409100,4.09987,2439.1,2439.0,0.6005923]
[1730803409915,4.09987,2439.1,2439.0,0.60063601]
[1730803416249,4.09987,2439.1,2439.0,0.2527537]
[1730803416402,4.09987,2439.1,2439.0,0.60067608]
[1730803418733,4.09987,2439.1,2439.0,0.60068221]
[1730803420141,4.09987,2439.1,2439.0,0.60067791]
[1730803425419,4.18191747,2439.1,2439.0,0.60067791]
[1730803427918,4.09987,2439.1,2439.0,0.60067791]
[1730803428936,4.18191747,2439.1,2439.0,0.60067791]
[1730803429728,4.09987,2439.1,2439.0,0.60067791]
[1730803430339,4.18191747,2439.1,2439.0,0.60067791]
[1730803430541,4.18191747,2439.1,2439.0,0.2527537]
[1730803430743,4.18191747,2439.1,2439.0,0.60069589]
[1730803432463,4.09987,2439.1,2439.0,0.60069589]
[1730803432968,4.18191747,2439.1,2439.0,0.60069589]
[1730803433677,4.09987,2439.1,2439.0,0.60069589]
[1730803434190,4.09987,2439.1,2439.0,0.60070423]
[1730803434330,4.18191747,2439.1,2439.0,0.60070423]
[1730803434936,4.09987,2439.1,2439.0,0.60070423]
[1730803435174,4.18191747,2439.1,2439.0,0.60070423]
[1730803435340,4.09987,2439.1,2439.0,0.60070423]
[1730803435775,4.18191747,2439.1,2439.0,0.60070423]
[1730803435999,4.09987,2439.1,2439.0,0.60070423]
[1730803437392,4.18191747,2439.1,2439.0,0.60070423]
[1730803437683,4.18191747,2439.1,2439.0,0.60070711]
[1730803440964,4.09987,2439.1,2439.0,0.60070711]
[1730803441607,4.09987,2439.1,2439.0,1.15732387]
[1730803441977,4.09987,2439.1,2439.0,0.60070711]
[1730803443898,4.09987,2439.1,2439.0,0.2527537]
[1730803444118,4.09987,2439.1,2439.0,0.60064343]
[1730803445672,4.09987,2439.1,2439.0,0.60063681]
[1730803445872,4.18191747,2439.1,2439.0,0.60063681]
[1730803446372,4.09987,2439.1,2439.0,0.60063681]
[1730803447810,4.09987,2439.1,2439.0,0.2527537]
[1730803448119,4.09987,2439.1,2439.0,1.15700405]
[1730803448496,4.09971,2439.2,2439.0,1.15700405]
[1730803448691,4.09971,2439.2,2439.1,0.34779502]
[1730803448894,6.68493476,2439.5,2439.2,0.01]
[1730803449096,4.0992,2439.5,2439.4,0.01]
[1730803449295,5.53897672,2439.5,2439.4,0.35779502]
[1730803449621,5.53897672,2439.5,2439.3,0.01]
[1730803449825,4.0997,2439.2,2439.1,0.02]
[1730803450030,4.18174747,2439.2,2439.1,0.35752652]
[1730803450526,5.96934814,2439.2,2439.1,0.35752652]
[1730803450720,5.96934814,2439.2,2439.1,0.01]
[1730803461103,5.96934814,2439.2,2439.1,0.25245241]
[1730803461304,5.96934814,2439.2,2439.1,0.01]
[1730803461505,5.96934814,2439.2,2439.1,0.25245241]
[1730803461734,5.96934814,2439.2,2439.1,0.01]
[1730803461918,5.96934814,2439.2,2439.1,0.25245241]
[1730803469953,2.58453685,2439.3,2439.2,0.7527]
[1730803470180,7.09926,2439.5,2439.3,0.01]
[1730803470181,4.09951,2439.4,2439.3,0.01]
[1730803470468,10.78310685,2439.5,2439.3,0.01]
[1730803470760,1.35772925,2439.7,2439.5,0.01]
[1730803470761,4.09911,2439.6,2439.5,0.01]
[1730803471167,4.18115747,2439.6,2439.5,0.25247256]
[1730803471550,4.18115747,2439.6,2439.5,0.24247256]
[1730803471764,6.76527196,2439.6,2439.5,0.24247256]
[1730803472262,4.0992,2439.5,2439.4,0.01]
[1730803472464,7.60965633,2439.5,2439.4,0.01]
[1730803472707,7.6917038,2439.5,2439.4,0.2521617]
[1730803472854,5.53897672,2439.5,2439.4,0.2521617]
[1730803473044,5.53897672,2439.5,2439.4,0.2421617]
[1730803473446,4.09936,2439.4,2439.3,0.02]
[1730803473627,4.09936,2439.4,2439.3,0.60954539]
[1730803473959,4.09936,2439.4,2439.3,0.59954539]
[1730803474171,6.25193954,2439.4,2439.3,0.26224403]
[1730803474465,6.25193954,2439.4,2439.3,0.02]
[1730803474670,6.33398701,2439.4,2439.3,0.02]
[1730803475227,6.33390814,2439.4,2439.3,0.02]
[1730803475535,6.33390814,2439.4,2439.3,0.26227024]
[1730803475749,6.33390814,2439.4,2439.3,0.02]
[1730803475945,6.33390814,2439.4,2439.3,0.2622615]
[1730803476142,6.33390814,2439.4,2439.3,0.02]
[1730803476339,6.33390814,2439.4,2439.3,0.2622615]
[1730803476584,6.33390814,2439.4,2439.3,0.02]
[1730803476761,6.33390814,2439.4,2439.3,0.2622615]
[1730803477669,6.33390814,2439.4,2439.3,0.2522615]
[1730803477973,6.33390814,2439.4,2439.3,0.2622615]
[1730803478640,0.08204747,2439.4,2439.3,0.2622615]
[1730803478840,4.09923,2439.5,2439.3,1.12073132]
[1730803479071,4.09923,2439.5,2439.3,0.77354365]
[1730803479072,6.25173067,2439.5,2439.3,0.77354365]
[1730803479241,4.09923,2439.5,2439.3,0.77354365]
[1730803479867,4.0992,2439.5,2439.3,0.77354365]
[1730803480371,4.0992,2439.5,2439.3,0.2622615]
[1730803481399,8.1985,2439.5,2439.3,0.2622615]
[1730803481878,4.0992,2439.5,2439.3,0.2622615]
[1730803482036,4.18124747,2439.5,2439.3,0.2622615]
[1730803482736,4.0992,2439.5,2439.3,0.2622615]
[1730803482937,4.0992,2439.5,2439.3,0.77354465]
[1730803484740,8.1985,2439.5,2439.3,0.77354465]
[1730803485872,4.0992,2439.5,2439.3,0.77354465]
[1730803486194,4.09936,2439.4,2439.3,0.77354465]
[1730803486348,4.09936,2439.4,2439.3,0.2622615]
[1730803487152,4.09936,2439.4,2439.3,0.60928654]
[1730803487558,4.09936,2439.4,2439.3,0.2622615]
[1730803490903,4.09909,2439.6,2439.5,0.01]
[1730803491273,4.09909,2439.6,2439.5,0.2519046]
[1730803491472,4.09909,2439.6,2439.5,0.01]
[1730803491650,4.09909,2439.6,2439.5,0.2519046]
[1730803492302,4.09909,2439.6,2439.5,1.0035046]
[1730803492673,4.09909,2439.6,2439.5,0.7616]
[1730803492867,6.24981782,2439.7,2439.5,1.00336481]
[1730803493066,6.24981782,2439.7,2439.5,1.52465229]
[1730803493067,4.18095747,2439.7,2439.5,1.52465229]
[1730803493958,4.09903,2439.6,2439.5,1.52465229]
[1730803494155,4.09903,2439.6,2439.5,1.01336481]
[1730803498459,4.18107747,2439.6,2439.5,1.01336481]
[1730803499901,4.18107747,2439.6,2439.5,0.60895367]
[1730803500100,4.18107747,2439.6,2439.5,0.26176481]
[1730803500817,4.18107747,2439.6,2439.5,0.60899316]
[1730803501316,4.18107747,2439.6,2439.5,0.26176481]
[1730803501488,4.18107747,2439.6,2439.5,0.60898847]
[1730803501827,4.18107747,2439.6,2439.5,0.60898906]
[1730803502337,4.18107747,2439.6,2439.5,0.60898489]
[1730803502481,4.18107747,2439.6,2439.5,0.26176481]
[1730803502684,4.18107747,2439.6,2439.5,0.6090199]
[1730803502907,4.18107747,2439.6,2439.5,0.26176481]
[1730803503228,4.18107747,2439.6,2439.5,0.60901296]
[1730803505219,4.09903,2439.6,2439.5,0.60901296]
[1730803506204,4.09903,2439.6,2439.5,0.60899814]
[1730803506523,4.09903,2439.6,2439.5,0.60902916]
[1730803507512,2.15004872,2439.8,2439.7,0.01]
[1730803507825,2.15004872,2439.9,2439.7,4.4660861]
[1730803508022,2.15567947,2440.1,2439.9,0.02]
[1730803508225,0.005564,2440.1,2440.0,0.34716987]
[1730803508395,0.005564,2440.1,2440.0,0.58864542]
[1730803509298,0.005564,2440.1,2440.0,0.24147555]
[1730803517315,4.103754,2440.1,2440.0,0.24147555]
[1730803518641,0.005564,2440.1,2440.0,0.24147555]
[1730803523854,4.103754,2440.1,2440.0,0.24147555]
[1730803526361,0.005564,2440.1,2440.0,0.24147555]
[1730803526566,0.005564,2440.1,2440.0,4.85556211]
[1730803526860,0.005564,2440.1,2440.0,5.50145542]
[1730803527538,0.005564,2440.1,2440.0,6.05494593]
[1730803528861,0.005564,2440.1,2440.0,6.05450842]
[1730803530470,0.005564,2440.1,2440.0,6.06450842]
[1730803530775,0.005564,2440.1,2440.0,7.28875514]
[1730803530970,0.005564,2440.1,2440.0,7.29875514]
[1730803531279,0.005564,2440.1,2440.0,7.9904647]
[1730803531770,0.005564,2440.1,2440.0,7.29875514]
[1730803532366,0.005564,2440.1,2440.0,7.28835083]
[1730803532677,0.005564,2440.1,2440.0,7.29835083]
[1730803533639,0.005564,2440.1,2440.0,7.28835083]
[1730803535327,0.005564,2440.1,2440.0,7.27835083]
[1730803536060,0.005564,2440.1,2440.0,7.27845654]
[1730803538059,0.005564,2440.1,2440.0,7.97010515]
[1730803539375,0.005564,2440.1,2440.0,7.27845654]
[1730803539680,0.005564,2440.1,2440.0,7.27865109]
[1730803539878,0.005564,2440.1,2440.0,7.27867834]
[1730803543505,0.005564,2440.1,2440.0,7.27857205]
[1730803544595,0.005564,2440.1,2440.0,7.97020369]
[1730803544890,0.005564,2440.1,2440.0,7.27857205]
[1730803550356,0.005564,2440.1,2440.0,7.27922827]
[1730803550796,0.005564,2440.1,2440.0,6.37958227]
[1730803550998,0.005564,2440.1,2440.0,7.97115311]
[1730803554128,0.005564,2440.1,2440.0,6.37958227]
[1730803554281,0.005564,2440.1,2440.0,7.97222416]
[1730803557320,0.005564,2440.1,2440.0,8.54927875]
[1730803561523,0.005564,2440.1,2440.0,8.55323679]
[1730803563485,0.005564,2440.1,2440.0,8.55262977]
[1730803564011,0.005564,2440.1,2440.0,8.55259108]
[1730803567288,0.005564,2440.1,2440.0,8.85856779]
[1730803567690,0.005564,2440.1,2440.0,8.55278781]
[1730803567899,0.005564,2440.1,2440.0,8.85876531]
[1730803568445,0.005564,2440.1,2440.0,9.02640583]
[1730803569217,0.005564,2440.1,2440.0,9.03640583]
[1730803570134,0.005564,2440.1,2440.0,9.74538282]
[1730803570333,0.005564,2440.1,2440.0,10.2307069]
[1730803570539,0.005564,2440.1,2440.0,9.74529431]
[1730803570713,0.005564,2440.1,2440.0,9.74516994]
[1730803571113,0.005564,2440.1,2440.0,10.80880513]
[1730803571322,0.005564,2440.1,2440.0,7.26635064]
[1730803571638,0.005564,2440.1,2440.0,7.40483183]
[1730803571828,0.005564,2440.1,2440.0,9.74555258]
[1730803572214,0.005564,2440.1,2440.0,10.77215218]
[1730803572404,0.005564,2440.1,2440.0,11.07842268]
[1730803572604,0.005564,2440.1,2440.0,9.30519933]
[1730803573233,0.005564,2440.1,2440.0,8.86878907]
[1730803573426,0.005564,2440.1,2440.0,9.30530029]
[1730803573825,0.005564,2440.1,2440.0,8.47980029]
[1730803574134,0.005564,2440.1,2440.0,8.21116807]
[1730803574438,0.005564,2440.1,2440.0,8.47978991]
[1730803574635,0.005564,2440.1,2440.0,7.63325182]
[1730803574951,0.005564,2440.1,2440.0,5.56408227]
[1730803575254,0.005564,2440.1,2440.0,8.4797008]
[1730803576337,0.005564,2440.1,2440.0,7.90186106]
[1730803576645,0.005564,2440.1,2440.0,8.4797008]
[1730803579083,0.005564,2440.1,2440.0,7.90186106]
[1730803579413,0.005564,2440.1,2440.0,8.4797008]
[1730803582451,0.005564,2440.1,2440.0,7.21137974]
[1730803582755,0.005564,2440.1,2440.0,8.04347095]
[1730803582962,0.005564,2440.1,2440.0,8.42082461]
[1730803583258,0.005564,2440.1,2440.0,8.84287734]
[1730803584460,0.005564,2440.1,2440.0,10.61701782]
[1730803586159,0.005564,2440.1,2440.0,7.70104726]
[1730803586362,0.005564,2440.1,2440.0,10.6169781]
[1730803586820,0.005564,2440.1,2440.0,10.61696442]
[1730803588557,0.005564,2440.1,2440.0,10.03907849]
[1730803588861,0.005564,2440.1,2440.0,9.73256077]
[1730803589849,0.005564,2440.1,2440.0,7.70103876]
[1730803590024,0.005564,2440.1,2440.0,9.73262645]
[1730803591126,0.005564,2440.1,2440.0,10.31051769]
[1730803591971,0.005564,2440.1,2440.0,10.31070911]
[1730803593679,0.005564,2440.1,2440.0,10.31071757]
[1730803593876,0.005564,2440.1,2440.0,10.3107154]
[1730803594051,0.005564,2440.1,2440.0,10.31071688]
[1730803594256,0.005564,2440.1,2440.0,10.31071925]
[1730803595375,0.005564,2440.1,2440.0,9.73282759]
[1730803595580,0.005564,2440.1,2440.0,8.50858087]
[1730803596136,0.760464,2440.1,2440.0,2.36721787]
[1730803596354,0.760464,2440.1,2440.0,6.46557787]
[1730803597375,0.760464,2440.1,2440.0,6.29735228]
[1730803597580,0.760464,2440.1,2440.0,6.46524106]
[1730803598440,0.005564,2440.1,2440.0,6.46524106]
[1730803598642,0.005564,2440.1,2440.0,8.59575318]
[1730803598842,0.005564,2440.1,2440.0,8.59553106]
[1730803599674,0.005564,2440.1,2440.0,11.25714637]
[1730803599882,0.005564,2440.1,2440.0,15.0976762]
[1730803600084,0.005564,2440.1,2440.0,16.94529889]
[1730803600238,0.005564,2440.1,2440.0,15.65794071]
[1730803600574,0.005564,2440.1,2440.0,17.37441829]
[1730803600776,0.005564,2440.1,2440.0,15.03696874]
[1730803600990,0.005564,2440.1,2440.0,16.6351502]
[1730803601135,0.005564,2440.1,2440.0,15.6552907]
[1730803601339,0.7524,2440.8,2440.7,0.02]
[1730803601564,0.7882,2441.0,2440.9,0.02]
[1730803601760,0.7882,2441.0,2440.9,0.92015995]
[1730803602073,0.7882,2441.0,2440.9,1.21755521]
[1730803602370,0.7882,2441.0,2440.9,0.66360894]
[1730803603139,0.7882,2441.0,2440.9,0.65360894]
[1730803603837,7.76002816,2441.0,2440.9,0.31739526]
[1730803604156,7.76002816,2441.0,2440.9,0.02]
[1730803604481,6.03732117,2441.0,2440.9,0.02]
[1730803604698,8.18911206,2441.0,2440.9,0.31718588]
[1730803604976,8.18911206,2441.0,2440.7,0.02]
[1730803604977,4.87961,2440.8,2440.7,0.02]
[1730803605188,6.09947846,2440.8,2440.7,0.02]
[1730803605336,6.09947846,2440.8,2440.7,0.31721565]
[1730803605540,6.09947846,2440.8,2440.7,0.02]
[1730803606383,6.18152593,2440.8,2440.7,0.31721565]
[1730803606542,7.9011276,2440.8,2440.7,0.02]
[1730803606739,7.9011276,2440.8,2440.7,0.31721565]
[1730803607748,8.33331682,2440.8,2440.7,0.31721565]
[1730803607973,8.25126935,2440.8,2440.7,0.02]
[1730803608870,8.25126935,2440.8,2440.7,0.31742503]
[1730803609125,8.25126935,2440.8,2440.7,0.02]
[1730803610148,8.24907826,2440.8,2440.7,0.02]
[1730803614698,6.09947846,2440.8,2440.7,0.31730284]
[1730803614851,8.33108097,2440.8,2440.7,0.02]
[1730803615051,8.2490335,2440.8,2440.7,0.31730284]
[1730803615292,8.2490335,2440.8,2440.7,0.02]
[1730803615702,8.2490335,2440.8,2440.7,0.31730284]
[1730803615853,8.2490335,2440.8,2440.7,0.02]
[1730803616364,8.2490335,2440.8,2440.7,0.31730284]
[1730803616564,8.2490335,2440.8,2440.7,0.02]
[1730803616974,8.2490335,2440.8,2440.7,0.31730284]
[1730803617182,8.2490335,2440.8,2440.7,0.02]
[1730803617362,8.2490335,2440.8,2440.7,0.31730284]
[1730803619199,8.2490335,2440.8,2440.7,0.30730284]
[1730803619562,6.09947846,2440.8,2440.7,0.30730284]
[1730803619765,6.18152593,2440.8,2440.7,0.01]
[1730803621002,6.18152593,2440.8,2440.0,4.40438579]
[1730803621003,4.09752,2440.5,2440.4,0.01]
[1730803621160,6.60155797,2440.5,2440.4,0.01]
[1730803621365,4.88188,2440.4,2440.3,0.01]
[1730803621602,6.68387503,2440.4,2440.3,0.01]
[1730803622110,6.68387503,2440.4,2440.3,0.30751951]
[1730803622305,8.5225022,2440.4,2440.3,0.01]
[1730803622515,8.44045473,2440.4,2440.3,0.01]
[1730803622816,10.22803388,2440.4,2440.3,0.01]
[1730803623118,10.22803388,2440.4,2440.1,0.01]
[1730803623119,4.92812,2440.2,2440.1,0.01]
[1730803623278,6.85715286,2440.2,2440.1,0.01]
[1730803623708,6.85715286,2440.2,2440.1,0.30792457]
[1730803625811,6.85715286,2440.2,2440.1,0.29792457]
[1730803626017,8.57695888,2440.2,2440.1,0.29792457]
[1730803626219,4.09836,2440.0,2439.9,0.01]
[1730803626500,4.18040747,2440.0,2439.9,0.30812023]
[1730803628197,4.09822,2440.1,2439.9,0.30812023]
[1730803628423,4.09822,2440.1,2440.0,0.01]
[1730803628834,4.09822,2440.1,2440.0,0.30814025]
[1730803629836,4.09819,2440.1,2440.0,0.30814025]
[1730803630202,4.18023747,2440.1,2440.0,0.30814025]
[1730803635000,4.96593747,2440.1,2440.0,0.30814025]
[1730803637540,4.96593747,2440.1,2440.0,0.308664]
[1730803639531,4.96593747,2440.1,2440.0,0.298664]
[1730803645946,4.09836,2440.0,2439.9,0.01]
[1730803646357,4.18040747,2440.0,2439.9,0.01]
[1730803647177,4.18040747,2440.0,2439.9,0.3564619]
[1730803647682,4.18040747,2440.0,2439.9,0.01]
[1730803647877,4.18040747,2440.0,2439.9,0.35654793]
[1730803648104,5.08683722,2440.0,2439.9,0.01]
[1730803648582,4.09852,2439.9,2439.8,0.01]
[1730803648882,4.09852,2439.9,2439.8,0.3566907]
[1730803649085,4.18056747,2439.9,2439.8,0.3566907]
[1730803654375,4.97526747,2439.9,2439.8,0.3466907]
[1730803654696,4.09869,2439.8,2439.7,0.01]
[1730803656200,4.18073747,2439.8,2439.7,0.30900557]
[1730803656599,4.18073747,2439.8,2439.7,0.01]
[1730803656803,4.91793,2439.6,2439.5,0.01]
[1730803657103,4.99997747,2439.6,2439.5,0.01]
[1730803658305,4.18107747,2439.6,2439.5,0.01]
[1730803658669,4.18107747,2439.6,2439.5,0.30903537]
[1730803664400,4.09886,2439.7,2439.5,0.30903537]
[1730803664575,8.27991747,2439.7,2439.5,0.30903537]
[1730803664795,8.19787,2439.7,2439.5,0.30903537]
[1730803665294,4.18107747,2439.6,2439.5,0.30903537]
[1730803666321,4.09903,2439.6,2439.5,0.30903537]
[1730803666683,4.09903,2439.6,2439.5,0.65565784]
[1730803666920,4.09903,2439.6,2439.5,0.30903537]
[1730803667436,4.09903,2439.6,2439.5,0.65565725]
[1730803667718,4.09903,2439.6,2439.5,0.65566952]
[1730803668243,6.53039261,2439.6,2439.5,0.65566952]
[1730803668444,6.53039261,2439.6,2439.5,0.30903537]
[1730803668751,5.17266336,2439.6,2439.5,0.01]
[1730803669233,5.17266336,2439.6,2439.5,0.30955063]
[1730803669520,6.89063223,2439.6,2439.5,0.30955063]
[1730803672585,6.89063223,2439.6,2439.5,0.29955063]
[1730803672785,2.70955476,2439.6,2439.3,0.01]
[1730803672980,4.09936,2439.4,2439.3,0.01]
[1730803673827,4.09953,2439.3,2439.2,0.01]
[1730803674122,5.01157747,2439.3,2439.2,0.35687569]
[1730803674321,5.01157747,2439.3,2439.2,0.02]
[1730803674499,8.26040028,2439.3,2439.2,0.02]
[1730803674699,8.17835281,2439.3,2439.2,0.02]
[1730803676640,8.17835281,2439.3,2439.2,0.01]
[1730803678606,8.17835281,2439.3,2439.2,0.30997095]
[1730803678803,8.17835281,2439.3,2439.2,0.01]
[1730803679027,8.17835281,2439.3,2439.2,0.30997095]
[1730803679248,8.17835281,2439.3,2439.2,0.01]
[1730803680089,8.17835281,2439.3,2439.2,0.30997095]
[1730803680505,8.17835281,2439.3,2439.2,0.01]
[1730803680703,8.17835281,2439.3,2439.2,0.30997095]
[1730803683321,8.17835281,2439.3,2439.2,0.29997095]
[1730803683521,4.09987,2439.1,2439.0,0.02]
[1730803683725,4.18191747,2439.1,2439.0,0.02]
[1730803687134,4.18191747,2439.1,2439.0,0.3202454]
[1730803696053,4.18191747,2439.1,2439.0,0.3102454]
[1730803696440,4.97101747,2439.1,2439.0,0.01]
[1730803696645,6.75279142,2439.1,2439.0,0.01]
[1730803697619,8.47076029,2439.1,2439.0,0.01]
[1730803697848,8.38871282,2439.1,2439.0,0.28054454]
[1730803698048,6.67074395,2439.1,2439.0,0.28054454]
[1730803698359,6.75279142,2439.1,2439.0,0.28054454]
[1730803698559,8.47076029,2439.1,2439.0,0.28054454]
[1730803698783,8.38871282,2439.1,2439.0,0.28054454]
[1730803699280,8.38871282,2439.1,2439.0,0.01]
[1730803699424,5.88164395,2439.1,2439.0,0.28059697]
[1730803699625,7.68166029,2439.1,2439.0,0.28059697]
[1730803700047,5.89988634,2439.1,2439.0,0.28059697]
[1730803702135,5.89988634,2439.1,2439.0,0.01]
[1730803702959,6.72778634,2439.1,2439.0,0.01]
[1730803704338,6.72778634,2439.1,2439.0,0.35765162]
[1730803705062,6.72778634,2439.1,2439.0,0.62837966]
[1730803705267,8.72423563,2439.1,2439.0,0.35765162]
[1730803705435,8.64218816,2439.1,2439.0,0.35765162]
[1730803708569,8.64218816,2439.1,2439.0,0.62837966]
[1730803708928,8.64218816,2439.1,2439.0,0.35765162]
[1730803710751,6.92421929,2439.1,2439.0,0.01]
[1730803710955,7.00626676,2439.1,2439.0,0.97609859]
[1730803711266,7.00626676,2439.1,2439.0,0.62841433]
[1730803711560,9.15603246,2439.1,2439.0,0.62841433]
[1730803711754,9.07398499,2439.1,2439.0,0.62841433]
[1730803712250,9.07398499,2439.1,2439.0,0.97610255]
[1730803712426,9.07398499,2439.1,2439.0,0.96610255]
[1730803713634,9.07398499,2439.1,2439.0,0.61841433]
[1730803713835,9.07398499,2439.1,2439.0,0.9661204]
[1730803714045,9.07398499,2439.1,2439.0,0.69539236]
[1730803714768,9.07600444,2439.1,2439.0,0.69539236]
[1730803715574,6.92421929,2439.1,2439.0,0.69539236]
[1730803715868,9.58840894,2439.1,2439.0,0.34768629]
[1730803716034,9.50636147,2439.1,2439.0,0.34768629]
[1730803716671,12.50636147,2439.1,2439.0,0.34768629]
[1730803717667,9.92421929,2439.1,2439.0,0.34768629]
[1730803718286,12.50740715,2439.1,2439.0,0.34768629]
[1730803718444,9.92421929,2439.1,2439.0,0.34768629]
[1730803718984,12.5076512,2439.1,2439.0,0.34768629]
[1730803719477,12.5076512,2439.1,2438.6,0.7936]
[1730803719478,4.10054,2438.7,2438.6,0.7936]
[1730803719668,5.82318368,2438.7,2438.6,1.41208169]
[1730803719869,5.90523115,2438.7,2438.6,1.41208169]
[1730803720072,5.90523115,2438.7,2438.6,1.14120662]
[1730803720446,5.90523115,2438.7,2438.6,1.41208169]
[1730803721184,5.90523115,2438.7,2438.6,0.62848169]
[1730803721485,5.39848305,2438.7,2438.6,0.01]
[1730803721822,7.55178766,2438.7,2438.6,0.62846173]
[1730803721977,7.55178766,2438.7,2438.6,0.35758666]
[1730803722144,7.55178766,2438.7,2438.6,0.62846173]
[1730803723684,5.39848305,2438.7,2438.6,0.62846173]
[1730803723989,7.55100995,2438.7,2438.6,0.62846173]
[1730803724287,5.39848305,2438.7,2438.6,0.62846173]
[1730803724647,7.12037848,2438.7,2438.6,0.62846173]